bitfinex/quotes_BTCUSD_20241002
["timestamp","ask_amount","ask_price","bid_price","bid_amount"]
[1727880302388,0.63255245,61554.0,61553.0,0.001638]
[1727880302609,0.72957543,61554.0,61553.0,0.001638]
[1727880303295,0.440658,61554.0,61553.0,0.001638]
[1727880303514,0.256558,61554.0,61553.0,0.001638]
[1727880303735,0.25953502,61554.0,61553.0,0.01294452]
[1727880303948,0.25953502,61554.0,61553.0,0.17540552]
[1727880303949,0.022,61554.0,61553.0,0.17540552]
[1727880304426,0.022,61554.0,61553.0,0.20795552]
[1727880304427,0.011,61554.0,61553.0,0.20795552]
[1727880304659,0.013,61554.0,61553.0,0.23095552]
[1727880305129,0.002,61554.0,61553.0,0.39414223]
[1727880305362,0.004,61554.0,61553.0,0.39414223]
[1727880305589,0.004,61554.0,61553.0,0.49414223]
[1727880305590,0.002,61554.0,61553.0,0.49414223]
[1727880306030,0.003,61554.0,61553.0,0.4961399]
[1727880306246,0.24439719,61566.0,61565.0,0.162429]
[1727880306722,0.24439719,61566.0,61565.0,0.17359308]
[1727880306998,0.24439719,61573.0,61572.0,0.162411]
[1727880307496,0.00082,61576.0,61572.0,0.162411]
[1727880307497,0.00082,61576.0,61575.0,0.162403]
[1727880307995,0.00082,61576.0,61575.0,0.01104542]
[1727880308487,0.00082,61576.0,61573.0,0.162407]
[1727880308759,0.00082,61576.0,61575.0,0.17344842]
[1727880309096,0.00082,61576.0,61575.0,0.185403]
[1727880309292,0.00082,61576.0,61575.0,0.22899842]
[1727880309532,0.00082,61576.0,61575.0,0.23224601]
[1727880310051,0.00182,61576.0,61575.0,0.23224601]
[1727880310582,0.00182,61576.0,61575.0,0.17544842]
[1727880310795,0.00182,61576.0,61575.0,0.1786963]
[1727880311547,0.00282,61576.0,61575.0,0.21199842]
[1727880311774,0.00282,61576.0,61575.0,0.48264333]
[1727880312004,0.00282,61576.0,61575.0,0.49818513]
[1727880312235,0.00182,61576.0,61575.0,0.53478513]
[1727880312471,0.00182,61576.0,61575.0,0.78518232]
[1727880312696,0.09702597,61596.0,61589.0,0.217916]
[1727880312697,0.04851298,61593.0,61589.0,0.217916]
[1727880312944,0.04851298,61595.0,61589.0,0.217916]
[1727880313181,0.07276948,61596.0,61589.0,0.39188822]
[1727880313182,0.04851298,61596.0,61589.0,0.39188822]
[1727880313406,0.04851298,61596.0,61595.0,0.16235]
[1727880313630,0.07276948,61597.0,61595.0,0.16235]
[1727880313631,0.04851298,61597.0,61596.0,0.185348]
[1727880313860,0.29291017,61598.0,61597.0,0.194895]
[1727880314088,0.04862558,61598.0,61596.0,0.35839751]
[1727880314337,0.07276948,61599.0,61596.0,0.35839751]
[1727880314338,0.07276948,61599.0,61598.0,0.162342]
[1727880314579,0.35919917,61600.0,61592.0,0.162356]
[1727880314803,0.04861578,61596.0,61592.0,0.162356]
[1727880315026,0.00297702,61595.0,61586.0,0.24439719]
[1727880315252,0.33504547,61595.0,61586.0,0.24439719]
[1727880315510,0.0515928,61594.0,61592.0,0.162358]
[1727880315737,0.04861578,61594.0,61592.0,0.162358]
[1727880315965,0.04861578,61594.0,61590.0,0.324724]
[1727880315966,0.00297702,61594.0,61590.0,0.162363]
[1727880316189,0.04861578,61594.0,61589.0,0.324729]
[1727880316415,0.12601578,61595.0,61588.0,0.324736]
[1727880316663,0.00297702,61594.0,61590.0,0.324727]
[1727880316900,0.0515928,61593.0,61585.0,0.32475]
[1727880317123,0.0515928,61593.0,61586.0,0.24439719]
[1727880317350,0.0486143,61592.0,61581.0,0.03255]
[1727880317575,0.0486143,61592.0,61582.0,0.324766]
[1727880317576,0.00297702,61591.0,61582.0,0.324766]
[1727880317795,0.00297702,61591.0,61587.0,0.16237]
[1727880318076,0.24737421,61591.0,61580.0,0.03255]
[1727880318326,0.24737421,61591.0,61582.0,0.162382]
[1727880318327,0.16237,61588.0,61582.0,0.162382]
[1727880318545,0.24737421,61591.0,61582.0,0.162382]
[1727880318546,0.162374,61586.0,61582.0,0.162383]
[1727880318765,0.162374,61586.0,61575.0,0.03255]
[1727880318766,0.00297702,61587.0,61584.0,0.162378]
[1727880318990,0.16535002,61587.0,61586.0,0.002]
[1727880319234,0.0486143,61590.0,61579.0,0.24439719]
[1727880319453,0.04863537,61589.0,61588.0,0.162369]
[1727880319683,0.12153575,61593.0,61590.0,0.162364]
[1727880319684,0.07292145,61591.0,61590.0,0.162364]
[1727880319903,0.04863458,61591.0,61590.0,0.162364]
[1727880320126,0.12153575,61596.0,61594.0,0.023]
[1727880320127,0.04863458,61595.0,61594.0,0.023]
[1727880320350,0.04863458,61596.0,61594.0,0.18618671]
[1727880320586,0.04863458,61596.0,61591.0,0.324721]
[1727880320587,0.04863458,61600.0,61599.0,0.023]
[1727880320803,0.00082,61601.0,61600.0,0.26433467]
[1727880321029,0.04862917,61607.0,61606.0,0.02499767]
[1727880321259,0.36593294,61611.0,61606.0,0.02499767]
[1727880321260,0.04862917,61611.0,61610.0,0.29230867]
[1727880321489,0.07293888,61613.0,61612.0,0.123]
[1727880321719,0.07293888,61614.0,61613.0,0.285303]
[1727880322181,0.09725184,61616.0,61614.0,0.31785]
[1727880322182,0.07293888,61615.0,61614.0,0.31785]
[1727880322184,0.07293888,61616.0,61615.0,0.285298]
[1727880322393,0.14669776,61619.0,61618.0,0.21784]
[1727880322610,0.05216929,61619.0,61618.0,0.38102671]
[1727880322830,0.19798028,61619.0,61618.0,0.38102671]
[1727880323052,0.05216929,61619.0,61618.0,0.38102671]
[1727880323915,0.05216929,61619.0,61618.0,0.39302671]
[1727880324129,0.05216929,61619.0,61618.0,0.40502671]
[1727880324827,0.05216929,61619.0,61618.0,0.24184]
[1727880325063,0.05216929,61619.0,61618.0,0.18629]
[1727880325519,0.21445629,61619.0,61618.0,0.024]
[1727880325741,0.05216929,61619.0,61618.0,0.024]
[1727880325961,0.21445629,61619.0,61618.0,0.00084858]
[1727880326202,0.05514631,61619.0,61612.0,0.40670119]
[1727880326431,0.16402889,61613.0,61612.0,0.40670119]
[1727880326659,0.05134929,61613.0,61612.0,0.40670119]
[1727880326871,0.05134929,61613.0,61612.0,0.162304]
[1727880327539,0.19713449,61613.0,61612.0,0.162304]
[1727880327759,0.19713449,61613.0,61612.0,0.166304]
[1727880327981,0.05134929,61613.0,61612.0,0.166304]
[1727880328709,0.17281298,61613.0,61612.0,0.166304]
[1727880329158,0.05134929,61613.0,61612.0,0.166304]
[1727880329388,0.05134929,61613.0,61612.0,0.004]
[1727880329616,0.21365229,61613.0,61612.0,0.004]
[1727880330076,0.21365229,61613.0,61612.0,0.007]
[1727880330538,0.39945229,61613.0,61612.0,0.007]
[1727880330757,0.39945229,61613.0,61612.0,0.004]
[1727880330975,0.162313,61610.0,61605.0,0.324644]
[1727880331194,0.07286055,61607.0,61606.0,0.16232]
[1727880331627,0.07286055,61608.0,61606.0,0.16232]
[1727880331847,0.07286055,61608.0,61605.0,0.162323]
[1727880332067,0.04856944,61606.0,61604.0,0.162327]
[1727880332311,0.04856944,61606.0,61602.0,0.324661]
[1727880332528,0.162319,61607.0,61603.0,0.162327]
[1727880332754,0.04856944,61609.0,61591.0,0.324719]
[1727880332755,0.28345267,61605.0,61591.0,0.324719]
[1727880332979,0.28345267,61600.0,61594.0,0.24439719]
[1727880333199,0.00297702,61599.0,61594.0,0.40674919]
[1727880333462,0.02545172,61602.0,61594.0,0.25502974]
[1727880333692,0.02545172,61602.0,61601.0,0.162335]
[1727880333937,0.12143425,61611.0,61601.0,0.162335]
[1727880333938,0.44284718,61613.0,61604.0,0.324653]
[1727880334214,0.24521719,61613.0,61612.0,0.162306]
[1727880334759,0.24521719,61613.0,61596.0,0.38845267]
[1727880334760,0.24521719,61613.0,61599.0,0.03255]
[1727880335020,0.002,61600.0,61599.0,0.31789]
[1727880336066,0.00082,61613.0,61599.0,0.31789]
[1727880336067,0.00082,61613.0,61612.0,0.162306]
[1727880336336,0.00082,61613.0,61601.0,0.324667]
[1727880336587,0.162306,61612.0,61602.0,0.36739719]
[1727880336829,0.00082,61613.0,61600.0,0.03255]
[1727880337067,0.162306,61612.0,61609.0,0.162312]
[1727880337880,0.00582,61613.0,61608.0,0.162315]
[1727880337881,0.162309,61611.0,61608.0,0.162315]
[1727880338115,0.16828302,61612.0,61606.0,0.324639]
[1727880338352,0.00597702,61612.0,61609.0,0.162313]
[1727880338605,0.00597702,61612.0,61609.0,0.162311]
[1727880338878,0.00597702,61612.0,61611.0,0.24439719]
[1727880339152,0.00597702,61612.0,61611.0,0.217858]
[1727880339153,0.003,61612.0,61611.0,0.217858]
[1727880339391,0.003,61612.0,61611.0,0.66774282]
[1727880339659,0.00082,61613.0,61611.0,0.66774282]
[1727880339660,0.00082,61613.0,61612.0,0.05555]
[1727880339923,0.00082,61613.0,61612.0,0.38104271]
[1727880340744,0.00082,61613.0,61612.0,0.48104271]
[1727880342399,0.24439719,61624.0,61618.0,0.19984]
[1727880342649,0.24439719,61624.0,61618.0,0.77147705]
[1727880343375,0.00082,61625.0,61624.0,0.294824]
[1727880343646,0.00082,61625.0,61624.0,0.48425551]
[1727880343890,0.00082,61625.0,61624.0,0.76446338]
[1727880344649,0.00082,61625.0,61624.0,0.48101071]
[1727880345433,0.00082,61625.0,61624.0,0.76646105]
[1727880346213,0.00082,61625.0,61624.0,0.77646105]
[1727880346468,0.00182,61625.0,61624.0,0.77646105]
[1727880346953,0.00282,61625.0,61624.0,0.78546105]
[1727880347466,0.00082,61637.0,61636.0,0.285242]
[1727880347467,0.02625482,61637.0,61636.0,0.285242]
[1727880347710,0.02625482,61637.0,61636.0,0.44842871]
[1727880347972,0.00082,61637.0,61636.0,0.44842871]
[1727880350030,0.00182,61637.0,61636.0,0.45442871]
[1727880350311,0.00282,61637.0,61636.0,0.46142871]
[1727880350577,0.00282,61637.0,61636.0,0.49397871]
[1727880351420,0.00282,61637.0,61636.0,0.200792]
[1727880351421,0.00182,61637.0,61636.0,0.200792]
[1727880351647,0.00182,61637.0,61636.0,0.211792]
[1727880351648,0.00282,61637.0,61636.0,0.211792]
[1727880351873,0.00282,61637.0,61636.0,0.47497871]
[1727880352125,0.00182,61637.0,61636.0,0.46897871]
[1727880352572,0.00282,61637.0,61636.0,0.47897871]
[1727880352806,0.00282,61637.0,61636.0,0.50197871]
[1727880353026,0.00282,61637.0,61636.0,0.49097871]
[1727880353250,0.00182,61637.0,61636.0,0.49097871]
[1727880353480,0.00282,61637.0,61636.0,0.49997871]
[1727880353708,0.00282,61637.0,61636.0,0.49097871]
[1727880353960,0.00282,61637.0,61636.0,0.50097871]
[1727880353961,0.00382,61637.0,61636.0,0.50097871]
[1727880361212,0.000819,61640.0,61636.0,0.50097871]
[1727880361213,0.000819,61640.0,61637.0,0.60324034]
[1727880361426,0.000819,61640.0,61637.0,0.76442938]
[1727880361866,0.000819,61640.0,61637.0,0.76642705]
[1727880362086,0.000819,61640.0,61637.0,0.77142705]
[1727880362315,0.000819,61640.0,61639.0,0.29223167]
[1727880362540,0.000819,61640.0,61639.0,0.45719638]
[1727880362759,0.000819,61640.0,61639.0,0.45342071]
[1727880362985,0.000819,61640.0,61639.0,0.45541838]
[1727880363447,0.000819,61640.0,61639.0,0.45342071]
[1727880364619,0.001819,61640.0,61639.0,0.46042071]
[1727880364844,0.002819,61640.0,61639.0,0.46742071]
[1727880366450,0.002819,61640.0,61639.0,0.276234]
[1727880366736,0.002819,61640.0,61639.0,0.176234]
[1727880367388,0.002819,61640.0,61639.0,0.42387559]
[1727880367625,0.002819,61640.0,61639.0,0.33942071]
[1727880367856,0.002819,61640.0,61639.0,0.36242071]
[1727880368154,0.242351,61640.0,61639.0,0.014]
[1727880368392,0.3245,61634.0,61628.0,0.001638]
[1727880368671,0.63211367,61629.0,61628.0,0.001638]
[1727880368913,0.239598,61615.0,61614.0,0.24439719]
[1727880369146,0.36075267,61615.0,61614.0,0.24439719]
[1727880369377,0.70945067,61615.0,61614.0,0.24439719]
[1727880369617,0.54715267,61615.0,61607.0,0.56903519]
[1727880369857,0.162308,61612.0,61607.0,0.40671419]
[1727880370091,0.02544602,61614.0,61607.0,0.56903419]
[1727880370332,0.02544602,61614.0,61610.0,0.16231]
[1727880370333,0.02842304,61614.0,61610.0,0.16231]
[1727880370783,0.02544602,61614.0,61613.0,0.162303]
[1727880371235,0.02544602,61614.0,61609.0,0.324623]
[1727880371493,0.02844602,61614.0,61609.0,0.324623]
[1727880371736,0.162317,61608.0,61604.0,0.162327]
[1727880371960,0.28345267,61611.0,61603.0,0.162329]
[1727880371961,0.16232,61607.0,61603.0,0.162329]
[1727880372186,0.162316,61608.0,61605.0,0.162324]
[1727880372420,0.162318,61608.0,61603.0,0.162328]
[1727880372651,0.162318,61608.0,61602.0,0.001638]
[1727880372652,0.162329,61603.0,61602.0,0.001638]
[1727880373394,0.422529,61603.0,61602.0,0.001638]
[1727880373843,0.422529,61603.0,61593.0,0.24439719]
[1727880373844,0.162353,61594.0,61593.0,0.24439719]
[1727880374072,0.28345267,61598.0,61593.0,0.24439719]
[1727880374318,0.28345267,61598.0,61594.0,0.162351]
[1727880374319,0.00297702,61597.0,61594.0,0.162351]
[1727880374552,0.2722,61603.0,61600.0,0.162337]
[1727880374768,0.2722,61603.0,61595.0,0.324697]
[1727880374769,0.24737421,61602.0,61595.0,0.324697]
[1727880374990,0.24737421,61602.0,61599.0,0.16234]
[1727880374991,0.00297702,61602.0,61599.0,0.16234]
[1727880375478,0.29265326,61603.0,61602.0,0.162332]
[1727880375722,0.28565326,61603.0,61602.0,0.162332]
[1727880375938,0.10225326,61603.0,61602.0,0.162332]
[1727880376859,0.02545326,61603.0,61602.0,0.194882]
[1727880377077,0.03245326,61603.0,61602.0,0.163332]
[1727880377295,0.03245326,61603.0,61602.0,0.165332]
[1727880377512,0.03245326,61603.0,61602.0,0.194882]
[1727880377513,0.02545326,61603.0,61602.0,0.194882]
[1727880377742,0.02545326,61603.0,61602.0,0.197882]
[1727880377960,0.001,61603.0,61602.0,0.205882]
[1727880378211,0.2757,61613.0,61609.0,0.162313]
[1727880378434,0.162309,61611.0,61603.0,0.324657]
[1727880378657,0.02544856,61603.0,61602.0,0.204882]
[1727880378881,0.16528602,61611.0,61605.0,0.324647]
[1727880379112,0.16528602,61611.0,61609.0,0.162313]
[1727880379113,0.02544872,61610.0,61609.0,0.162313]
[1727880379394,0.02544872,61610.0,61602.0,0.04255]
[1727880379395,0.162315,61609.0,61602.0,0.01]
[1727880379689,0.44578167,61603.0,61602.0,0.007]
[1727880379955,0.44678167,61603.0,61602.0,0.25139719]
[1727880380201,0.44678167,61603.0,61602.0,0.007]
[1727880380202,0.28445267,61603.0,61602.0,0.007]
[1727880380453,0.31188034,61603.0,61595.0,0.03255]
[1727880380707,0.31188034,61603.0,61602.0,0.003]
[1727880380926,0.31188034,61603.0,61602.0,0.001]
[1727880381650,0.31188034,61603.0,61600.0,0.324674]
[1727880381911,0.02842767,61603.0,61602.0,0.162332]
[1727880382147,0.02545065,61603.0,61602.0,0.162332]
[1727880383167,0.02545065,61603.0,61600.0,0.324674]
[1727880383168,0.000819,61610.0,61609.0,0.162313]
[1727880383421,0.000819,61610.0,61606.0,0.162321]
[1727880383422,0.16610802,61610.0,61606.0,0.162321]
[1727880383658,0.00379602,61610.0,61609.0,0.162313]
[1727880383917,0.000819,61610.0,61609.0,0.162313]
[1727880384712,0.003819,61610.0,61609.0,0.162313]
[1727880385971,0.006819,61610.0,61609.0,0.162313]
[1727880386200,0.02926454,61610.0,61609.0,0.162313]
[1727880386425,0.02626454,61610.0,61609.0,0.7284469]
[1727880386662,0.02626454,61610.0,61609.0,0.48404971]
[1727880386899,0.02626454,61610.0,61609.0,0.4901714]
[1727880387127,0.001819,61610.0,61609.0,0.4961714]
[1727880387356,0.000819,61610.0,61609.0,0.48104971]
[1727880387582,0.001819,61610.0,61609.0,0.49004971]
[1727880387802,0.002819,61610.0,61609.0,0.50004971]
[1727880388025,0.002819,61610.0,61609.0,0.213863]
[1727880388272,0.084319,61610.0,61609.0,0.019]
[1727880388779,0.24960702,61610.0,61609.0,0.019]
[1727880389006,0.08629602,61610.0,61609.0,0.01]
[1727880389233,0.082319,61610.0,61607.0,0.162316]
[1727880389463,0.083319,61610.0,61609.0,0.171313]
[1727880389690,0.084319,61610.0,61609.0,0.019]
[1727880389912,0.162319,61607.0,61601.0,0.03255]
[1727880390133,0.32463,61609.0,61587.0,0.803739]
[1727880390134,0.10876689,61610.0,61605.0,0.324648]
[1727880390349,0.16529202,61609.0,61605.0,0.162323]
[1727880390601,0.00297702,61609.0,61607.0,0.162316]
[1727880390883,0.10876689,61610.0,61608.0,0.162315]
[1727880391114,0.10876689,61610.0,61606.0,0.324641]
[1727880391337,0.10876689,61610.0,61607.0,0.162317]
[1727880391570,0.10776689,61610.0,61605.0,0.162322]
[1727880391799,0.10776689,61610.0,61609.0,0.162313]
[1727880392035,0.001,61607.0,61601.0,0.03255]
[1727880392262,0.001,61607.0,61606.0,0.162321]
[1727880392717,0.10776689,61610.0,61609.0,0.162313]
[1727880392933,0.10976689,61610.0,61609.0,0.162313]
[1727880393183,0.10976689,61610.0,61604.0,0.162325]
[1727880393184,0.162317,61608.0,61604.0,0.162325]
[1727880393451,0.10776642,61610.0,61606.0,0.32464]
[1727880393701,0.10776642,61610.0,61607.0,0.162316]
[1727880393951,0.10776642,61610.0,61607.0,0.162318]
[1727880394194,0.28345267,61608.0,61606.0,0.002]
[1727880394434,0.162319,61607.0,61606.0,0.002]
[1727880394662,0.44576967,61608.0,61606.0,0.002]
[1727880394877,0.28345267,61608.0,61606.0,0.164321]
[1727880395115,0.10876642,61610.0,61600.0,0.24439719]
[1727880395330,0.00297702,61609.0,61607.0,0.162317]
[1727880395546,0.10976642,61610.0,61609.0,0.162313]
[1727880396246,0.10876642,61610.0,61609.0,0.162313]
[1727880396471,0.10776642,61610.0,61609.0,0.162313]
[1727880397833,0.10876642,61610.0,61609.0,0.162313]
[1727880398675,0.10976642,61610.0,61609.0,0.162313]
[1727880400452,0.10976642,61610.0,61602.0,0.001638]
[1727880400678,0.28345267,61607.0,61602.0,0.001638]
[1727880400908,0.162329,61603.0,61602.0,0.001638]
[1727880401154,0.239429,61603.0,61602.0,0.001638]
[1727880401363,0.24240602,61603.0,61602.0,0.001638]
[1727880401812,0.24240602,61603.0,61602.0,0.16397]
[1727880401813,0.10255166,61603.0,61602.0,0.16397]
[1727880402493,0.11355166,61603.0,61602.0,0.16497]
[1727880402716,0.27588066,61603.0,61602.0,0.002638]
[1727880402947,0.27885768,61603.0,61602.0,0.002638]
[1727880403167,0.24240602,61603.0,61602.0,0.001638]
[1727880403603,0.24840602,61603.0,61602.0,0.002638]
[1727880404023,0.245429,61603.0,61602.0,0.002638]
[1727880404243,0.24840602,61603.0,61602.0,0.002638]
[1727880404457,0.24840602,61603.0,61602.0,0.003638]
[1727880404688,0.24840602,61603.0,61602.0,0.001638]
[1727880404689,0.24240602,61603.0,61602.0,0.001638]
[1727880404952,0.0771,61603.0,61602.0,0.16397]
[1727880405185,0.0801,61603.0,61602.0,0.16397]
[1727880405880,0.009,61603.0,61602.0,0.16497]
[1727880406091,0.009,61603.0,61602.0,0.19752]
[1727880406349,0.03444914,61603.0,61602.0,0.19752]
[1727880406560,0.003,61603.0,61602.0,0.19652]
[1727880407880,0.003,61603.0,61602.0,0.19752]
[1727880408106,0.000819,61610.0,61609.0,0.162313]
[1727880409209,0.02626616,61610.0,61609.0,0.162313]
[1727880409464,0.02626616,61610.0,61608.0,0.162315]
[1727880409683,0.02626616,61610.0,61609.0,0.163313]
[1727880409935,0.02626616,61610.0,61609.0,0.001]
[1727880410178,0.19155418,61610.0,61609.0,0.001]
[1727880411083,0.162319,61607.0,61603.0,0.162328]
[1727880411337,0.16232,61607.0,61603.0,0.162329]
[1727880411560,0.02626616,61610.0,61603.0,0.324659]
[1727880411747,0.16529102,61609.0,61603.0,0.324659]
[1727880411991,0.162319,61607.0,61602.0,0.326299]
[1727880412217,0.03626616,61610.0,61602.0,0.326302]
[1727880412218,0.00297702,61608.0,61602.0,0.326302]
[1727880412458,0.00297702,61608.0,61604.0,0.162326]
[1727880412459,0.16529502,61608.0,61604.0,0.162326]
[1727880412685,0.162329,61603.0,61602.0,0.001638]
[1727880412905,0.43730602,61603.0,61602.0,0.001638]
[1727880413128,0.434329,61603.0,61602.0,0.001638]
[1727880414812,0.44580567,61594.0,61593.0,0.001638]
[1727880415029,0.82110567,61594.0,61593.0,0.001638]
[1727880415255,0.52282367,61587.0,61586.0,0.24439719]
[1727880415702,0.52282367,61587.0,61579.0,0.24439719]
[1727880415703,0.36045267,61587.0,61579.0,0.24439719]
[1727880415928,0.28345267,61580.0,61576.0,0.00164]
[1727880416149,0.00297702,61579.0,61576.0,0.00164]
[1727880416836,0.162398,61577.0,61576.0,0.00164]
[1727880417062,0.16537502,61577.0,61576.0,0.00164]
[1727880417283,0.24187502,61577.0,61576.0,0.00164]
[1727880417515,0.26733837,61577.0,61576.0,0.00164]
[1727880417738,0.24187502,61577.0,61576.0,0.00164]
[1727880417969,0.28658195,61577.0,61576.0,0.00164]
[1727880418433,0.29758195,61577.0,61576.0,0.00264]
[1727880418658,0.24187502,61577.0,61576.0,0.00164]
[1727880418909,0.08647702,61577.0,61576.0,0.00264]
[1727880419158,0.0835,61577.0,61576.0,0.00264]
[1727880419428,0.0765,61577.0,61576.0,0.00164]
[1727880419682,0.28636042,61577.0,61576.0,0.00364]
[1727880419897,0.28636042,61577.0,61576.0,0.16604]
[1727880419898,0.04746242,61577.0,61576.0,0.16604]
[1727880420566,0.04746242,61577.0,61576.0,0.00364]
[1727880420788,0.03646242,61577.0,61576.0,0.16504]
[1727880421021,0.44566042,61577.0,61576.0,0.00164]
[1727880421243,0.44566042,61577.0,61566.0,0.001638]
[1727880421244,0.427524,61567.0,61566.0,0.001638]
[1727880421531,0.71097667,61567.0,61566.0,0.001638]
[1727880421750,0.81097667,61567.0,61566.0,0.001638]
[1727880421975,0.8364465,61567.0,61566.0,0.001638]
[1727880422424,0.264435,61563.0,61562.0,0.00164]
[1727880422641,0.26741202,61563.0,61562.0,0.00164]
[1727880422863,0.26541202,61563.0,61562.0,0.00164]
[1727880423310,0.26741202,61563.0,61562.0,0.00164]
[1727880423530,0.26541202,61563.0,61562.0,0.00164]
[1727880424429,0.26741202,61563.0,61562.0,0.00164]
[1727880424658,0.26541202,61563.0,61562.0,0.00164]
[1727880425103,0.03097702,61563.0,61562.0,0.00164]
[1727880425607,0.190435,61563.0,61562.0,0.00164]
[1727880425821,0.190435,61563.0,61562.0,0.01281784]
[1727880426055,0.028,61563.0,61562.0,0.164077]
[1727880426542,0.028,61563.0,61562.0,0.17525484]
[1727880426543,0.014,61563.0,61562.0,0.17525484]
[1727880427506,0.162425,61567.0,61563.0,0.162434]
[1727880428184,0.162431,61565.0,61562.0,0.00164]
[1727880428401,0.00297702,61564.0,61562.0,0.00164]
[1727880428622,0.004,61563.0,61562.0,0.00164]
[1727880428839,0.002,61563.0,61562.0,0.164077]
[1727880429063,0.00297702,61564.0,61562.0,0.164077]
[1727880429281,0.16541002,61564.0,61562.0,0.00164]
[1727880429505,0.00297702,61563.0,61562.0,0.00164]
[1727880429721,0.00297702,61563.0,61562.0,0.164077]
[1727880429946,0.00697702,61565.0,61563.0,0.162433]
[1727880430176,0.004,61565.0,61564.0,0.162432]
[1727880430632,0.0254663,61567.0,61566.0,0.162427]
[1727880431111,0.0254663,61567.0,61563.0,0.324865]
[1727880431336,0.002,61563.0,61562.0,0.00164]
[1727880431567,0.00297702,61563.0,61562.0,0.164077]
[1727880431786,0.16643,61565.0,61562.0,0.164077]
[1727880432007,0.16643,61565.0,61562.0,0.00164]
[1727880432008,0.162435,61563.0,61562.0,0.00164]
[1727880432223,0.00297702,61564.0,61562.0,0.00164]
[1727880432691,0.0254663,61567.0,61562.0,0.00164]
[1727880433254,0.01700612,61577.0,61562.0,0.00164]
[1727880433516,0.24439719,61571.0,61568.0,0.324844]
[1727880433780,0.24439719,61571.0,61570.0,0.162416]
[1727880434016,0.0254639,61572.0,61565.0,0.324856]
[1727880434271,0.0254639,61572.0,61567.0,0.162424]
[1727880434540,0.0254639,61572.0,61563.0,0.162435]
[1727880434541,0.001,61564.0,61563.0,0.162435]
[1727880435291,0.00297702,61571.0,61562.0,0.00164]
[1727880435581,0.00297702,61571.0,61570.0,0.162416]
[1727880435769,0.0787,61575.0,61571.0,0.162414]
[1727880435770,0.00297702,61574.0,61571.0,0.162414]
[1727880436006,0.00297702,61574.0,61572.0,0.16241]
[1727880436245,0.00297702,61574.0,61573.0,0.162408]
[1727880436485,0.02844037,61574.0,61573.0,0.162408]
[1727880436701,0.19084737,61574.0,61568.0,0.32484]
[1727880436987,0.162413,61572.0,61568.0,0.16242]
[1727880437207,0.24737421,61571.0,61562.0,0.326513]
[1727880437436,0.35027635,61574.0,61562.0,0.00164]
[1727880437437,0.44588767,61563.0,61562.0,0.00164]
[1727880437921,0.510766,61564.0,61562.0,0.00164]
[1727880437922,0.348332,61564.0,61562.0,0.00164]
[1727880438145,0.02844464,61563.0,61562.0,0.00164]
[1727880438608,0.02844464,61563.0,61562.0,0.164077]
[1727880439050,0.02844464,61563.0,61562.0,0.00164]
[1727880439275,0.19087964,61563.0,61562.0,0.00164]
[1727880439552,0.02844464,61563.0,61562.0,0.00164]
[1727880439780,0.02844464,61563.0,61562.0,0.164077]
[1727880440020,0.02546762,61563.0,61562.0,0.164077]
[1727880441126,0.02546762,61563.0,61562.0,0.17527912]
[1727880442733,0.02646762,61563.0,61562.0,0.17527912]
[1727880443172,0.001,61563.0,61562.0,0.17527912]
[1727880443901,0.002,61563.0,61562.0,0.17527912]
[1727880445301,0.001,61563.0,61562.0,0.17527912]
[1727880445521,0.00297702,61574.0,61573.0,0.162408]
[1727880445741,0.0787,61575.0,61571.0,0.324827]
[1727880445961,0.0787,61575.0,61572.0,0.16241]
[1727880446182,0.00297702,61574.0,61572.0,0.01106234]
[1727880446404,0.16538502,61573.0,61572.0,0.01106234]
[1727880446627,0.002,61571.0,61562.0,0.00164]
[1727880446849,0.194,61572.0,61562.0,0.00164]
[1727880446850,0.44588767,61563.0,61562.0,0.00164]
[1727880447788,0.52678767,61563.0,61562.0,0.00164]
[1727880448229,0.52578767,61563.0,61562.0,0.00164]
[1727880449336,0.0799,61563.0,61562.0,0.164077]
[1727880449558,0.00297702,61567.0,61562.0,0.00164]
[1727880449832,0.162427,61566.0,61563.0,0.162434]
[1727880450022,0.00297702,61565.0,61564.0,0.16243]
[1727880450270,0.34230473,61570.0,61562.0,0.00164]
[1727880450271,0.02546686,61566.0,61562.0,0.00164]
[1727880450496,0.00297702,61565.0,61563.0,0.162434]
[1727880450734,0.162435,61563.0,61562.0,0.00164]
[1727880451043,0.44886469,61563.0,61562.0,0.00164]
[1727880451247,0.90390733,61563.0,61562.0,0.00164]
[1727880451479,0.90590733,61563.0,61562.0,0.00164]
[1727880451699,0.54791067,61554.0,61550.0,0.001638]
[1727880451918,0.82201067,61554.0,61550.0,0.001638]
[1727880452160,0.82401067,61554.0,61550.0,0.001638]
[1727880452634,0.84948545,61554.0,61550.0,0.001638]
[1727880452861,0.264461,61553.0,61550.0,0.001638]
[1727880453094,0.264461,61553.0,61548.0,0.001638]
[1727880453095,0.339466,61551.0,61548.0,0.001638]
[1727880453359,0.82012467,61549.0,61548.0,0.001638]
[1727880453638,0.82014567,61541.0,61537.0,0.24439719]
[1727880454185,0.81814567,61541.0,61537.0,0.24439719]
[1727880454418,0.81814567,61541.0,61535.0,0.001636]
[1727880454419,0.82014567,61541.0,61535.0,0.001636]
[1727880454968,0.54595867,61536.0,61535.0,0.001636]
[1727880456279,0.57144072,61536.0,61535.0,0.001636]
[1727880456492,0.54595867,61536.0,61535.0,0.001636]
[1727880456708,0.57095867,61536.0,61535.0,0.001636]
[1727880457390,0.57295867,61536.0,61535.0,0.001636]
[1727880457631,0.73614538,61536.0,61535.0,0.001636]
[1727880457884,0.57295867,61536.0,61535.0,0.001636]
[1727880458124,0.57095867,61536.0,61535.0,0.001636]
[1727880458651,0.54795867,61536.0,61535.0,0.001636]
[1727880458897,0.57395867,61536.0,61535.0,0.001636]
[1727880459164,0.55995867,61536.0,61535.0,0.001636]
[1727880459395,0.16253,61527.0,61514.0,0.001638]
[1727880459646,0.162561,61515.0,61514.0,0.001638]
[1727880459922,0.63851367,61515.0,61514.0,0.001638]
[1727880460750,0.74560278,61515.0,61514.0,0.001638]
[1727880462026,0.85060278,61515.0,61514.0,0.001638]